[Event "Prague Open 2024"]
[Site "Prague"]
[Date "2024.01.06"]
[Round "2.10"]
[White "Bech, Havard Eriksen"]
[Black "Grave, Jacob Templen"]
[Result "0-1"]
[ECO "A13"]
[WhiteElo "1955"]
[BlackElo "2296"]
[Annotator "RC"]
[PlyCount "72"]
[EventDate "2024.01.02"]
[EventType "swiss"]
[EventCountry "CZE"]
[SourceTitle "playchess.com"]
[Source "ChessBase"]
[SourceQuality "1"]
[TimeControl "40/5400+30:1800+30"]

1. c4 {[%emt 0:01:14]} e6 {[%emt 0:00:37]} 2. g3 {[%emt 0:00:14]} d5 {[%emt 0:00:11]} 3. Bg2 {[%emt 0:00:08]} Nf6 {[%emt 0:00:35]} 4. Nf3 {[%emt 0:00:12]} dxc4 {[%emt 0:01:09]} 5. Qa4+ {[%emt 0:00:13]} Nbd7 {[%emt 0:00:12]} 6. Qxc4 {[%emt 0:00:22]} a6 {[%emt 0:00:27]} 7. d4 {[%emt 0:02:14]} b5 {[%emt 0:03:34]} 8. Qc6 {[%emt 0:05:01]} Rb8 {[%emt 0:16:07]} 9. Bf4 {[%emt 0:13:47]} Nd5 {[%emt 0:07:26]} 10. Bg5 {[%emt 0:00:27]} Be7 {[%emt 0:01:19]} 11. Bxe7 {[%emt 0:01:03]} Qxe7 {[%emt 0:01:46]} 12. O-O {[%emt 0:01:49]} Bb7 {[%emt 0:01:36]} 13. Qc2 {[%emt 0:02:40]} c5 {[%emt 0:02:22]} 14. Nc3 {[%emt 0:13:23]} Nxc3 {[%emt 0:12:36]} 15. Qxc3 {[%emt 0:00:30]} c4 {[%emt 0:00:11]} 16. a4 {[%emt 0:04:17]} O-O {[%emt 0:03:02]} 17. axb5 {[%emt 0:06:23]} axb5 {[%emt 0:01:42]} 18. Ra7 {[%emt 0:01:22]} Qd6 {[%emt 0:03:54]} 19. Ne5 {[%emt 0:12:53]} Nxe5 {[%emt 0:02:02]} 20. dxe5 {[%emt 0:00:17]} Qb6 {[%emt 0:01:26]} 21. Rxb7 {[%emt 0:01:59]} Rxb7 {[%emt 0:00:05]} 22. Bxb7 {[%emt 0:00:10]} Qxb7 {[%emt 0:00:04]} 23. Rd1 {[%emt 0:00:56]} Qe4 {[%emt 0:06:29]} 24. e3 {[%emt 0:08:03]} h5 {[%emt 0:02:16]} 25. h4 {[%emt 0:16:00]} Ra8 {[%emt 0:01:29]} 26. Kh2 {[%emt 0:02:17]} Qf3 {[%emt 0:02:02]} 27. Qe1 {[%emt 0:02:04]} g6 {[%emt 0:02:03]} 28. Rd4 {[%emt 0:01:42]} Ra2 {[%emt 0:01:09]} 29. Rf4 {[%emt 0:00:48]} Qd5 {[%emt 0:02:14]} 30. Qb1 {[%emt 0:00:19]} Qa8 {[%emt 0:02:28]} 31. Qc2 {[%emt 0:02:39]} Ra1 {[%emt 0:01:47]} 32. Re4 {[%emt 0:00:21]} Qd5 {[%emt 0:01:28]} 33. f3 {[%emt 0:00:39]} Qd1 {[%emt 0:01:26]} 34. Qxd1 {[%emt 0:00:31]} Rxd1 {[%emt 0:00:06]} 35. Rd4 {[%emt 0:00:17]} Rxd4 {[%emt 0:00:33]} 36. exd4 {[%emt 0:00:06]} b4 {[%emt 0:00:03]} 0-1

[Event "Prague Open 2024"]
[Site "Prague"]
[Date "2024.01.06"]
[Round "2.11"]
[White "Morchiashvili, Bachana"]
[Black "Cziko, Eduard-Carol"]
[Result "1-0"]
[ECO "E41"]
[WhiteElo "2295"]
[BlackElo "1946"]
[Annotator "RC"]
[PlyCount "25"]
[EventDate "2024.01.02"]
[EventType "swiss"]
[EventCountry "CZE"]
[SourceTitle "playchess.com"]
[Source "ChessBase"]
[SourceQuality "1"]
[TimeControl "40/5400+30:1800+30"]

1. d4 {[%emt 0:00:04]} Nf6 {[%emt 0:00:09]} 2. c4 {[%emt 0:00:12]} e6 {[%emt 0:00:06]} 3. Nc3 {[%emt 0:02:52]} Bb4 {[%emt 0:00:09]} 4. e3 {[%emt 0:00:23]} c5 {[%emt 0:00:05]} 5. Bd3 {[%emt 0:00:06]} O-O {[%emt 0:00:19]} 6. Nge2 {[%emt 0:00:04]} b6 {[%emt 0:00:19]} 7. O-O {[%emt 0:01:14]} cxd4 {[%emt 0:01:28]} 8. exd4 {[%emt 0:00:05]} d5 {[%emt 0:00:23]} 9. cxd5 {[%emt 0:05:35]} Nxd5 {[%emt 0:00:40]} 10. Nxd5 {[%emt 0:00:10]} Qxd5 {[%emt 0:02:01]} 11. Nf4 {[%emt 0:08:44]} Qd7 {[%emt 0:03:20]} 12. Nh5 {[%emt 0:04:01]} Nc6 {[%emt 0:08:03]} 13. Bh6 {[%emt 0:01:08]} 1-0

[Event "Prague Open 2024"]
[Site "Prague"]
[Date "2024.01.06"]
[Round "2.12"]
[White "Mizicka, Matus"]
[Black "Keller, Peter"]
[Result "0-1"]
[ECO "C50"]
[WhiteElo "1953"]
[BlackElo "2289"]
[Annotator "RC"]
[PlyCount "100"]
[EventDate "2024.01.02"]
[EventType "swiss"]
[EventCountry "CZE"]
[SourceTitle "playchess.com"]
[Source "ChessBase"]
[SourceQuality "1"]
[TimeControl "40/5400+30:1800+30"]

1. e4 {[%emt 0:00:33]} e5 {[%emt 0:07:20]} 2. Nf3 {[%emt 0:00:12]} Nc6 {[%emt 0:00:06]} 3. Bc4 {[%emt 0:00:18]} Bc5 {[%emt 0:00:07]} 4. O-O {[%emt 0:00:22]} Nf6 {[%emt 0:00:06]} 5. d3 {[%emt 0:00:09]} d6 {[%emt 0:00:19]} 6. c3 {[%emt 0:00:23]} O-O {[%emt 0:01:47]} 7. b4 {[%emt 0:00:35]} Bb6 {[%emt 0:00:05]} 8. Bg5 {[%emt 0:00:58]} h6 {[%emt 0:10:36]} 9. Bh4 {[%emt 0:08:01]} Be6 {[%emt 0:05:55]} 10. Nbd2 {[%emt 0:02:24]} a6 {[%emt 0:05:11]} 11. Re1 {[%emt 0:01:03]} Qe7 {[%emt 0:02:38]} 12. Bd5 {[%emt 0:14:30]} g5 {[%emt 0:31:28]} 13. Bxc6 {[%emt 0:05:53]} bxc6 {[%emt 0:01:17]} 14. Nxg5 {[%emt 0:02:22]} hxg5 {[%emt 0:01:54]} 15. Bxg5 {[%emt 0:00:05]} Kg7 {[%emt 0:00:06]} 16. Qf3 {[%emt 0:00:09]} Bd7 {[%emt 0:01:44]} 17. Nf1 {[%emt 0:06:11]} Qe6 {[%emt 0:00:54]} 18. Ng3 {[%emt 0:00:05]} Nh7 {[%emt 0:00:46]} 19. Nf5+ {[%emt 0:00:30]} Kh8 {[%emt 0:00:37]} 20. Bh4 {[%emt 0:11:31]} Qg6 {[%emt 0:02:18]} 21. d4 {[%emt 0:02:07]} exd4 {[%emt 0:04:16]} 22. cxd4 {[%emt 0:01:35]} Rae8 {[%emt 0:00:15]} 23. d5 {[%emt 0:16:06]} f6 {[%emt 0:09:54]} 24. dxc6 {[%emt 0:08:35]} Bxc6 {[%emt 0:00:11]} 25. Rac1 {[%emt 0:00:35]} Bb7 {[%emt 0:01:02]} 26. Qf4 {[%emt 0:02:34]} Rg8 {[%emt 0:01:28]} 27. Ng3 {[%emt 0:01:41]} Re6 {[%emt 0:04:10]} 28. Kf1 {[%emt 0:02:55]} Qg4 {[%emt 0:01:12]} 29. Qf5 {[%emt 0:02:28]} Bc8 {[%emt 0:00:23]} 30. Qxg4 {[%emt 0:00:51]} Rxg4 {[%emt 0:00:02]} 31. Nf5 {[%emt 0:00:06]} Rgxe4 {[%emt 0:00:36]} 32. f3 {[%emt 0:02:27]} Rxe1+ {[%emt 0:01:11]} 33. Bxe1 {[%emt 0:00:11]} Rxe1+ {[%emt 0:02:06]} 34. Rxe1 {[%emt 0:00:05]} Bxf5 {[%emt 0:00:04]} 35. Re7 {[%emt 0:00:08]} Kg8 {[%emt 0:00:24]} 36. Re8+ {[%emt 0:00:59]} Kf7 {[%emt 0:00:11]} 37. Ra8 {[%emt 0:00:04]} Bd7 {[%emt 0:00:33]} 38. Ke2 {[%emt 0:00:52]} Nf8 {[%emt 0:01:49]} 39. Kd2 {[%emt 0:00:22]} Bb5 {[%emt 0:00:20]} 40. Kc3 {[%emt 0:00:40]} Ke7 {[%emt 0:00:56]} 41. Kb3 {[%emt 0:30:10]} d5 {[%emt 0:31:08]} 42. h4 {[%emt 0:01:52]} Be2 {[%emt 0:01:07]} 43. h5 {[%emt 0:00:38]} Be3 {[%emt 0:00:06]} 44. Rc8 {[%emt 0:00:20]} Ne6 {[%emt 0:00:12]} 45. Rh8 {[%emt 0:00:52]} d4 {[%emt 0:02:35]} 46. h6 {[%emt 0:00:39]} d3 {[%emt 0:00:05]} 47. h7 {[%emt 0:00:20]} d2 {[%emt 0:00:03]} 48. Re8+ {[%emt 0:00:29]} Kd7 {[%emt 0:00:16]} 49. h8=Q {[%emt 0:01:03]} d1=Q+ {[%emt 0:00:08]} 50. Kb2 {[%emt 0:00:24]} Qc1+ {[%emt 0:00:22]} 0-1

[Event "Prague Open 2024"]
[Site "Prague"]
[Date "2024.01.06"]
[Round "2.13"]
[White "Tobak, Mikhail"]
[Black "Tan, Zhong Kai"]
[Result "1-0"]
[ECO "B32"]
[WhiteElo "2288"]
[BlackElo "1942"]
[Annotator "RC"]
[PlyCount "145"]
[EventDate "2024.01.02"]
[EventType "swiss"]
[EventCountry "CZE"]
[SourceTitle "playchess.com"]
[Source "ChessBase"]
[SourceQuality "1"]
[TimeControl "40/5400+30:1800+30"]

1. e4 {[%emt 0:00:10]} c5 {[%emt 0:00:03]} 2. Nf3 {[%emt 0:00:06]} Nc6 {[%emt 0:00:04]} 3. d4 {[%emt 0:00:17]} cxd4 {[%emt 0:00:05]} 4. Nxd4 {[%emt 0:00:03]} e5 {[%emt 0:00:05]} 5. Nb5 {[%emt 0:03:04]} d6 {[%emt 0:00:03]} 6. N1c3 {[%emt 0:07:28]} a6 {[%emt 0:00:09]} 7. Na3 {[%emt 0:00:05]} Be7 {[%emt 0:00:07]} 8. Nd5 {[%emt 0:05:34]} Nf6 {[%emt 0:00:01]} 9. Nxf6+ {[%emt 0:01:58]} Bxf6 {[%emt 0:00:01]} 10. Nc4 {[%emt 0:00:11]} O-O {[%emt 0:04:18]} 11. Be3 {[%emt 0:05:14]} Nd4 {[%emt 0:13:28]} 12. c3 {[%emt 0:07:09]} b5 {[%emt 0:01:11]} 13. cxd4 {[%emt 0:01:00]} exd4 {[%emt 0:01:14]} 14. Bxd4 {[%emt 0:00:51]} bxc4 {[%emt 0:00:08]} 15. Bxf6 {[%emt 0:05:01]} Qxf6 {[%emt 0:00:05]} 16. Bxc4 {[%emt 0:00:38]} Bb7 {[%emt 0:08:38]} 17. Bd5 {[%emt 0:01:36]} Bxd5 {[%emt 0:06:14]} 18. Qxd5 {[%emt 0:00:06]} Rab8 {[%emt 0:00:21]} 19. O-O {[%emt 0:00:46]} Rxb2 {[%emt 0:00:16]} 20. Rab1 {[%emt 0:01:59]} Rc2 {[%emt 0:01:27]} 21. Rb6 {[%emt 0:01:21]} Rc5 {[%emt 0:04:11]} 22. Qxd6 {[%emt 0:11:36]} Qxd6 {[%emt 0:00:05]} 23. Rxd6 {[%emt 0:00:02]} Ra5 {[%emt 0:00:11]} 24. Rd2 {[%emt 0:00:30]} h5 {[%emt 0:04:17]} 25. Rc1 {[%emt 0:05:20]} g6 {[%emt 0:02:33]} 26. f3 {[%emt 0:01:38]} Rb8 {[%emt 0:13:49]} 27. Kf2 {[%emt 0:01:31]} Rab5 {[%emt 0:02:10]} 28. Ke2 {[%emt 0:05:04]} Rb2 {[%emt 0:00:55]} 29. Rc5 {[%emt 0:00:44]} Kg7 {[%emt 0:03:21]} 30. Kd3 {[%emt 0:01:46]} R2b4 {[%emt 0:06:27]} 31. Rdc2 {[%emt 0:05:09]} Ra4 {[%emt 0:04:11]} 32. R5c4 {[%emt 0:01:05]} Ra3+ {[%emt 0:00:21]} 33. R4c3 {[%emt 0:00:05]} Ra4 {[%emt 0:00:52]} 34. Kd2 {[%emt 0:01:18]} Rb1 {[%emt 0:00:35]} 35. Rb3 {[%emt 0:00:46]} Ra1 {[%emt 0:00:53]} 36. Rbb2 {[%emt 0:02:03]} Ra3 {[%emt 0:00:19]} 37. Ke2 {[%emt 0:00:21]} Rg1 {[%emt 0:00:44]} 38. Kf2 {[%emt 0:00:10]} Ra1 {[%emt 0:00:04]} 39. h4 {[%emt 0:00:29]} Rh1 {[%emt 0:01:49]} 40. Kg3 {[%emt 0:00:37]} Ra1 {[%emt 0:00:33]} 41. Kf4 {[%emt 0:35:26]} Rh1 {[%emt 0:31:59]} 42. g3 {[%emt 0:02:17]} Rf1 {[%emt 0:00:15]} 43. Rb3 {[%emt 0:00:05]} Rxb3 {[%emt 0:10:07]} 44. axb3 {[%emt 0:00:26]} Ra1 {[%emt 0:00:16]} 45. Rc7 {[%emt 0:03:34]} Ra5 {[%emt 0:04:59]} 46. Rb7 {[%emt 0:00:18]} Rc5 {[%emt 0:00:37]} 47. e5 {[%emt 0:01:40]} Kf8 {[%emt 0:01:06]} 48. g4 {[%emt 0:11:34]} hxg4 {[%emt 0:00:17]} 49. fxg4 {[%emt 0:00:05]} a5 {[%emt 0:00:45]} 50. h5 {[%emt 0:00:00]} gxh5 {[%emt 0:00:00]} 51. gxh5 {[%emt 0:00:00]} Rc1 {[%emt 0:00:00]} 52. h6 {[%emt 0:00:00]} Kg8 {[%emt 0:00:00]} 53. Ke4 {[%emt 0:00:00]} Rb1 {[%emt 0:00:00]} 54. Rb5 {[%emt 0:00:00]} Kh7 {[%emt 0:00:00]} 55. Kf5 {[%emt 0:00:24]} Rf1+ {[%emt 0:00:00]} 56. Kg5 {[%emt 0:00:59]} Rf3 {[%emt 0:00:03]} 57. Rb7 {[%emt 0:02:40]} Kg8 {[%emt 0:00:01]} 58. Rb8+ {[%emt 0:02:29]} Kh7 {[%emt 0:00:03]} 59. Rf8 {[%emt 0:00:23]} Rf1 {[%emt 0:00:24]} 60. Ra8 {[%emt 0:00:51]} Rf3 {[%emt 0:00:24]} 61. Rxa5 {[%emt 0:00:59]} Rxb3 {[%emt 0:00:06]} 62. Ra7 {[%emt 0:00:09]} Kg8 {[%emt 0:01:07]} 63. h7+ {[%emt 0:00:38]} Kxh7 {[%emt 0:00:07]} 64. Rxf7+ {[%emt 0:00:25]} Kg8 {[%emt 0:00:05]} 65. e6 {[%emt 0:00:12]} Re3 {[%emt 0:01:13]} 66. Kf6 {[%emt 0:00:09]} Ra3 {[%emt 0:03:12]} 67. Rg7+ {[%emt 0:00:26]} Kh8 {[%emt 0:00:10]} 68. Rg5 {[%emt 0:01:39]} Rf3+ {[%emt 0:03:12]} 69. Rf5 {[%emt 0:00:15]} Rxf5+ {[%emt 0:02:42]} 70. Kxf5 {[%emt 0:00:05]} Kg8 {[%emt 0:00:06]} 71. Kg6 {[%emt 0:00:17]} Kf8 {[%emt 0:00:07]} 72. Kf6 {[%emt 0:00:04]} Ke8 {[%emt 0:00:13]} 73. e7 {[%emt 0:00:04]} 1-0

[Event "Prague Open 2024"]
[Site "Prague"]
[Date "2024.01.06"]
[Round "2.14"]
[White "Elashvili, Giorgi"]
[Black "Jun, Rudolf"]
[Result "1-0"]
[ECO "A16"]
[WhiteElo "1942"]
[BlackElo "2283"]
[Annotator "RC"]
[PlyCount "85"]
[EventDate "2024.01.02"]
[EventType "swiss"]
[EventCountry "CZE"]
[SourceTitle "playchess.com"]
[Source "ChessBase"]
[SourceQuality "1"]
[TimeControl "40/5400+30:1800+30"]

1. c4 {[%emt 0:02:44]} Nf6 {[%emt 0:00:23]} 2. Nc3 {[%emt 0:01:48]} g6 {[%emt 0:02:32]} 3. g3 {[%emt 0:02:11]} Bg7 {[%emt 0:00:27]} 4. Bg2 {[%emt 0:00:10]} O-O {[%emt 0:00:25]} 5. d4 {[%emt 0:03:50]} c6 {[%emt 0:03:40]} 6. e4 {[%emt 0:01:50]} d6 {[%emt 0:00:25]} 7. Nge2 {[%emt 0:08:42]} e5 {[%emt 0:00:33]} 8. O-O {[%emt 0:03:24]} Nbd7 {[%emt 0:08:20]} 9. h3 {[%emt 0:01:24]} h6 {[%emt 0:01:32]} 10. Be3 {[%emt 0:02:37]} exd4 {[%emt 0:06:08]} 11. Nxd4 {[%emt 0:03:12]} Re8 {[%emt 0:01:06]} 12. Qc2 {[%emt 0:03:10]} a5 {[%emt 0:13:28]} 13. Rad1 {[%emt 0:07:48]} Qe7 {[%emt 0:02:24]} 14. Rfe1 {[%emt 0:00:37]} Nc5 {[%emt 0:00:46]} 15. Bc1 {[%emt 0:13:28]} Nh5 {[%emt 0:03:12]} 16. g4 {[%emt 0:07:42]} Nf6 {[%emt 0:00:52]} 17. Bf4 {[%emt 0:03:43]} Ncd7 {[%emt 0:03:26]} 18. Nxc6 {[%emt 0:14:26]} bxc6 {[%emt 0:00:37]} 19. Bxd6 {[%emt 0:00:09]} Qe6 {[%emt 0:08:32]} 20. e5 {[%emt 0:00:20]} Bb7 {[%emt 0:13:38]} 21. exf6 {[%emt 0:00:51]} Qxe1+ {[%emt 0:00:44]} 22. Rxe1 {[%emt 0:00:05]} Rxe1+ {[%emt 0:00:06]} 23. Kh2 {[%emt 0:00:10]} Nxf6 {[%emt 0:02:01]} 24. Qb3 {[%emt 0:01:37]} Rd8 {[%emt 0:03:34]} 25. Bg3 {[%emt 0:03:31]} Re7 {[%emt 0:07:15]} 26. Qb6 {[%emt 0:01:28]} Rd2 {[%emt 0:02:26]} 27. Qxa5 {[%emt 0:00:20]} Red7 {[%emt 0:03:31]} 28. Qb6 {[%emt 0:01:49]} h5 {[%emt 0:04:51]} 29. g5 {[%emt 0:03:14]} Nh7 {[%emt 0:00:32]} 30. h4 {[%emt 0:01:28]} Bd4 {[%emt 0:00:52]} 31. c5 {[%emt 0:01:27]} f5 {[%emt 0:05:59]} 32. Bxc6 {[%emt 0:03:10]} Bxf2 {[%emt 0:00:31]} 33. Qb3+ {[%emt 0:02:06]} Kg7 {[%emt 0:00:48]} 34. Bxb7 {[%emt 0:01:42]} Be1+ {[%emt 0:00:19]} 35. Bg2 {[%emt 0:00:17]} Bxg3+ {[%emt 0:01:34]} 36. Kxg3 {[%emt 0:00:07]} f4+ {[%emt 0:00:17]} 37. Kf3 {[%emt 0:00:23]} Nf8 {[%emt 0:00:42]} 38. Bf1 {[%emt 0:01:33]} Re7 {[%emt 0:00:16]} 39. Ne4 {[%emt 0:00:31]} Rd4 {[%emt 0:00:27]} 40. Bd3 {[%emt 0:00:37]} Ne6 {[%emt 0:00:01]} 41. Qc3 {[%emt 0:30:37]} Kf8 {[%emt 0:30:38]} 42. Bc4 {[%emt 0:00:00]} Nxc5 {[%emt 0:00:00]} 43. Qxd4 {[%emt 0:00:00]} 1-0

[Event "Prague Open 2024"]
[Site "Prague"]
[Date "2024.01.06"]
[Round "2.16"]
[White "Xie, Felix"]
[Black "Sosovickova, Jana"]
[Result "1-0"]
[ECO "A06"]
[WhiteElo "2249"]
[BlackElo "1938"]
[Annotator "RC"]
[PlyCount "115"]
[EventDate "2024.01.02"]
[EventType "swiss"]
[EventCountry "CZE"]
[SourceTitle "playchess.com"]
[Source "ChessBase"]
[SourceQuality "1"]
[TimeControl "40/5400+30:1800+30"]

1. Nf3 {[%emt 0:00:03]} d5 {[%emt 0:03:42]} 2. e3 {[%emt 0:00:27]} Nf6 {[%emt 0:01:22]} 3. c4 {[%emt 0:00:07]} e6 {[%emt 0:00:03]} 4. b3 {[%emt 0:00:06]} Be7 {[%emt 0:01:34]} 5. Bb2 {[%emt 0:00:05]} O-O {[%emt 0:00:50]} 6. Nc3 {[%emt 0:00:06]} c5 {[%emt 0:00:31]} 7. cxd5 {[%emt 0:00:27]} Nxd5 {[%emt 0:04:34]} 8. Nxd5 {[%emt 0:00:09]} exd5 {[%emt 0:01:00]} 9. Be2 {[%emt 0:03:30]} Nd7 {[%emt 0:10:44]} 10. O-O {[%emt 0:01:20]} Bf6 {[%emt 0:01:21]} 11. d4 {[%emt 0:05:57]} Re8 {[%emt 0:09:28]} 12. Qc2 {[%emt 0:03:54]} cxd4 {[%emt 0:03:39]} 13. Bxd4 {[%emt 0:00:22]} Bxd4 {[%emt 0:05:31]} 14. Nxd4 {[%emt 0:00:45]} Nf6 {[%emt 0:00:06]} 15. Rac1 {[%emt 0:13:54]} Re7 {[%emt 0:02:19]} 16. Rfd1 {[%emt 0:08:12]} Bd7 {[%emt 0:05:07]} 17. Qc5 {[%emt 0:11:25]} a6 {[%emt 0:06:44]} 18. Bf3 {[%emt 0:02:22]} b6 {[%emt 0:10:15]} 19. Qa3 {[%emt 0:17:07]} a5 {[%emt 0:04:58]} 20. h3 {[%emt 0:02:36]} h6 {[%emt 0:04:27]} 21. Qd6 {[%emt 0:06:59]} Be8 {[%emt 0:01:05]} 22. Qg3 {[%emt 0:00:13]} Bd7 {[%emt 0:01:17]} 23. Rc7 {[%emt 0:04:37]} Be6 {[%emt 0:05:05]} 24. Rc2 {[%emt 0:03:40]} Ne4 {[%emt 0:05:52]} 25. Bxe4 {[%emt 0:04:43]} dxe4 {[%emt 0:00:05]} 26. Rdd2 {[%emt 0:00:04]} Rd7 {[%emt 0:03:17]} 27. Qe5 {[%emt 0:04:50]} Qg5 {[%emt 0:03:32]} 28. Qxg5 {[%emt 0:00:55]} hxg5 {[%emt 0:00:04]} 29. Nxe6 {[%emt 0:03:07]} Rxd2 {[%emt 0:00:07]} 30. Rxd2 {[%emt 0:00:03]} fxe6 {[%emt 0:00:05]} 31. Rd6 {[%emt 0:01:40]} Kf7 {[%emt 0:00:35]} 32. Rxb6 {[%emt 0:00:35]} Rd8 {[%emt 0:00:09]} 33. Ra6 {[%emt 0:01:47]} Rd5 {[%emt 0:01:38]} 34. Kf1 {[%emt 0:00:08]} Kf6 {[%emt 0:02:35]} 35. Ke1 {[%emt 0:00:45]} Kf5 {[%emt 0:00:30]} 36. Ra7 {[%emt 0:00:37]} Kf6 {[%emt 0:00:28]} 37. Rc7 {[%emt 0:00:09]} Kg6 {[%emt 0:01:24]} 38. Rc4 {[%emt 0:00:15]} Kf5 {[%emt 0:00:07]} 39. Ke2 {[%emt 0:00:30]} Ke5 {[%emt 0:00:14]} 40. Rc7 {[%emt 0:00:45]} Kf6 {[%emt 0:00:11]} 41. Rc8 {[%emt 0:30:28]} Ke5 {[%emt 0:31:37]} 42. Rc4 {[%emt 0:00:57]} g6 {[%emt 0:01:57]} 43. Ra4 {[%emt 0:00:00]} Rb5 {[%emt 0:00:00]} 44. Rd4 {[%emt 0:00:00]} Rc5 {[%emt 0:00:00]} 45. Kd2 {[%emt 0:00:00]} Kf5 {[%emt 0:00:00]} 46. Rc4 {[%emt 0:00:00]} Rb5 {[%emt 0:00:00]} 47. Kc2 {[%emt 0:00:00]} Re5 {[%emt 0:00:00]} 48. g4+ {[%emt 0:00:00]} Kf6 {[%emt 0:00:00]} 49. a3 {[%emt 0:00:00]} Ke7 {[%emt 0:00:00]} 50. Rd4 {[%emt 0:00:00]} Kf6 {[%emt 0:00:00]} 51. b4 {[%emt 0:00:00]} Ke7 {[%emt 0:00:00]} 52. Kb3 {[%emt 0:00:00]} axb4 {[%emt 0:00:00]} 53. axb4 {[%emt 0:00:00]} Rd5 {[%emt 0:00:00]} 54. Rxd5 {[%emt 0:00:00]} exd5 {[%emt 0:00:00]} 55. Kc3 {[%emt 0:00:00]} Kd6 {[%emt 0:00:00]} 56. Kd4 {[%emt 0:00:00]} Kc6 {[%emt 0:00:00]} 57. Ke5 {[%emt 0:00:00]} Kb5 {[%emt 0:00:00]} 58. Kxd5 {[%emt 0:00:00]} 1-0

[Event "Prague Open 2024"]
[Site "Prague"]
[Date "2024.01.06"]
[Round "2.17"]
[White "Lilliehook, Victor"]
[Black "Bednar, Marcel"]
[Result "1/2-1/2"]
[ECO "B06"]
[WhiteElo "1934"]
[BlackElo "2249"]
[Annotator "RC"]
[PlyCount "85"]
[EventDate "2024.01.02"]
[EventType "swiss"]
[EventCountry "CZE"]
[SourceTitle "playchess.com"]
[Source "ChessBase"]
[SourceQuality "1"]
[TimeControl "40/5400+30:1800+30"]

1. e4 {[%emt 0:00:01]} g6 {[%emt 0:05:01]} 2. d4 {[%emt 0:00:08]} Bg7 {[%emt 0:00:05]} 3. Nc3 {[%emt 0:00:22]} c6 {[%emt 0:00:52]} 4. h4 {[%emt 0:04:27]} d5 {[%emt 0:00:38]} 5. e5 {[%emt 0:01:46]} f6 {[%emt 0:04:29]} 6. f4 {[%emt 0:06:04]} Nh6 {[%emt 0:00:58]} 7. Bd3 {[%emt 0:06:44]} Bg4 {[%emt 0:01:24]} 8. Be2 {[%emt 0:01:28]} Qd7 {[%emt 0:04:58]} 9. Bxg4 {[%emt 0:04:09]} Qxg4 {[%emt 0:02:20]} 10. Qxg4 {[%emt 0:03:02]} Nxg4 {[%emt 0:01:52]} 11. Nf3 {[%emt 0:03:02]} Na6 {[%emt 0:03:01]} 12. a3 {[%emt 0:05:36]} h5 {[%emt 0:12:26]} 13. O-O {[%emt 0:08:45]} Nc7 {[%emt 0:00:45]} 14. Ne2 {[%emt 0:04:11]} Ne6 {[%emt 0:00:51]} 15. b4 {[%emt 0:05:00]} a5 {[%emt 0:00:28]} 16. Bd2 {[%emt 0:04:19]} axb4 {[%emt 0:07:48]} 17. axb4 {[%emt 0:00:57]} Kd7 {[%emt 0:01:20]} 18. g3 {[%emt 0:06:33]} Bh6 {[%emt 0:02:10]} 19. Nc3 {[%emt 0:02:53]} b5 {[%emt 0:06:04]} 20. Ne2 {[%emt 0:03:04]} Nc7 {[%emt 0:05:15]} 21. Nh2 {[%emt 0:04:29]} fxe5 {[%emt 0:17:26]} 22. Nxg4 {[%emt 0:00:15]} hxg4 {[%emt 0:00:07]} 23. dxe5 {[%emt 0:00:23]} Rxa1 {[%emt 0:03:45]} 24. Rxa1 {[%emt 0:00:01]} Ra8 {[%emt 0:00:03]} 25. Rxa8 {[%emt 0:01:06]} Nxa8 {[%emt 0:00:01]} 26. Be3 {[%emt 0:02:02]} Nc7 {[%emt 0:00:16]} 27. Nc1 {[%emt 0:01:33]} Bf8 {[%emt 0:02:00]} 28. Nb3 {[%emt 0:05:29]} e6 {[%emt 0:04:31]} 29. Bc5 {[%emt 0:02:13]} Bxc5+ {[%emt 0:02:52]} 30. Nxc5+ {[%emt 0:00:08]} Ke7 {[%emt 0:00:19]} 31. c3 {[%emt 0:02:51]} Ne8 {[%emt 0:01:56]} 32. Nb3 {[%emt 0:05:20]} Ng7 {[%emt 0:04:59]} 33. Nd4 {[%emt 0:00:55]} Kd7 {[%emt 0:00:47]} 34. Kf1 {[%emt 0:01:43]} Kc7 {[%emt 0:00:18]} 35. Kf2 {[%emt 0:01:22]} Kb6 {[%emt 0:00:21]} 36. Nb3 {[%emt 0:00:08]} Nf5 {[%emt 0:03:24]} 37. Nd4 {[%emt 0:00:12]} Ng7 {[%emt 0:00:56]} 38. Nb3 {[%emt 0:00:17]} Kc7 {[%emt 0:00:09]} 39. Nd4 {[%emt 0:01:38]} Kd7 {[%emt 0:00:39]} 40. Kf1 {[%emt 0:02:09]} Nh5 {[%emt 0:01:37]} 41. Kf2 {[%emt 0:30:54]} Ng7 {[%emt 0:30:05]} 42. Kf1 {[%emt 0:00:58]} Kc7 {[%emt 0:00:13]} 43. Kf2 1/2-1/2

[Event "Prague Open 2024"]
[Site "Prague"]
[Date "2024.01.06"]
[Round "2.18"]
[White "Eliseev, Sergey"]
[Black "Kinberg, Ofer"]
[Result "1-0"]
[ECO "C95"]
[WhiteElo "2232"]
[BlackElo "1927"]
[Annotator "RC"]
[PlyCount "93"]
[EventDate "2024.01.02"]
[EventType "swiss"]
[EventCountry "CZE"]
[SourceTitle "playchess.com"]
[Source "ChessBase"]
[SourceQuality "1"]
[TimeControl "40/5400+30:1800+30"]

1. e4 {[%emt 0:11:05]} e5 {[%emt 0:00:02]} 2. Nf3 {[%emt 0:00:07]} Nc6 {[%emt 0:00:04]} 3. Bb5 {[%emt 0:00:12]} a6 {[%emt 0:00:04]} 4. Ba4 {[%emt 0:00:13]} Nf6 {[%emt 0:00:05]} 5. O-O {[%emt 0:00:07]} Be7 {[%emt 0:00:04]} 6. Re1 {[%emt 0:00:12]} b5 {[%emt 0:00:04]} 7. Bb3 {[%emt 0:00:05]} d6 {[%emt 0:00:02]} 8. c3 {[%emt 0:00:07]} O-O {[%emt 0:00:04]} 9. h3 {[%emt 0:00:07]} Nb8 {[%emt 0:00:03]} 10. d4 {[%emt 0:00:06]} Nbd7 {[%emt 0:00:09]} 11. c4 {[%emt 0:00:08]} Bb7 {[%emt 0:14:43]} 12. Nc3 {[%emt 0:01:46]} c6 {[%emt 0:01:07]} 13. a3 {[%emt 0:02:06]} Qc7 {[%emt 0:04:02]} 14. Be3 {[%emt 0:00:30]} Rac8 {[%emt 0:06:31]} 15. Ba2 {[%emt 0:02:11]} Qb8 {[%emt 0:16:17]} 16. Qc2 {[%emt 0:11:49]} h6 {[%emt 0:06:58]} 17. Rad1 {[%emt 0:02:34]} Rfe8 {[%emt 0:00:27]} 18. dxe5 {[%emt 0:06:15]} dxe5 {[%emt 0:02:22]} 19. Nh4 {[%emt 0:05:14]} Bf8 {[%emt 0:03:09]} 20. Qb3 {[%emt 0:06:50]} Re6 {[%emt 0:08:12]} 21. Qc2 {[%emt 0:03:51]} Ree8 {[%emt 0:01:02]} 22. f3 {[%emt 0:01:22]} Nc5 {[%emt 0:08:40]} 23. Ne2 {[%emt 0:07:13]} Ne6 {[%emt 0:00:31]} 24. c5 {[%emt 0:00:22]} g6 {[%emt 0:04:24]} 25. b4 {[%emt 0:02:41]} Qc7 {[%emt 0:02:00]} 26. g4 {[%emt 0:01:13]} Nh7 {[%emt 0:01:52]} 27. Kf2 {[%emt 0:03:48]} Nhg5 {[%emt 0:01:12]} 28. Rh1 {[%emt 0:03:03]} Rcd8 {[%emt 0:00:16]} 29. Ng2 {[%emt 0:01:15]} Bc8 {[%emt 0:09:20]} 30. h4 {[%emt 0:00:27]} Nh7 {[%emt 0:00:01]} 31. Qc1 {[%emt 0:00:36]} g5 {[%emt 0:01:00]} 32. Bxe6 {[%emt 0:04:06]} Bxe6 {[%emt 0:00:29]} 33. hxg5 {[%emt 0:00:01]} hxg5 {[%emt 0:02:58]} 34. Bxg5 {[%emt 0:00:16]} Rxd1 {[%emt 0:04:05]} 35. Rxd1 {[%emt 0:00:02]} a5 {[%emt 0:01:12]} 36. Nh4 {[%emt 0:04:33]} Qa7 {[%emt 0:01:50]} 37. Nf5 {[%emt 0:00:44]} axb4 {[%emt 0:00:41]} 38. axb4 {[%emt 0:00:03]} Qa4 {[%emt 0:00:50]} 39. Qd2 {[%emt 0:04:20]} Qb3 {[%emt 0:01:08]} 40. Rh1 {[%emt 0:08:09]} Ra8 {[%emt 0:01:07]} 41. Nc1 {[%emt 0:31:13]} Qb1 {[%emt 0:03:49]} 42. Kg3 {[%emt 0:00:00]} Ra2 {[%emt 0:05:01]} 43. Qd8 {[%emt 0:00:00]} Bxf5 {[%emt 0:20:28]} 44. gxf5 {[%emt 0:00:00]} Qc2 {[%emt 0:00:37]} 45. Nxa2 {[%emt 0:00:00]} Qxa2 {[%emt 0:01:14]} 46. Rxh7 {[%emt 0:00:00]} Kxh7 {[%emt 0:00:36]} 47. Qxf8 {[%emt 0:00:00]} 1-0